fUST/lending_fUST_20250813
["ID","MTS","AMOUNT","RATE_DAILY","PERIOD"]
[378841994,1755050843499,460.0,0.00029999,120]
[378841995,1755050844103,968.11,0.00029999,120]
[378841996,1755050845022,460.0,0.00029999,120]
[378841997,1755050845678,174.87662587,0.00029999,120]
[378841998,1755050846429,460.0,0.00029999,120]
[378841999,1755050848319,468.99796938,0.00029999,120]
[378842000,1755050848534,460.0,0.00029999,120]
[378842001,1755050850586,466.99434933,0.00029999,120]
[378842002,1755050852658,470.35167782,0.00029999,120]
[378842003,1755050857565,460.0,0.00029999,120]
[378842004,1755050860783,465.04808473,0.00029999,120]
[378842005,1755050862697,694.37,0.00029999,120]
[378842006,1755050869989,1563.68,0.00029999,120]
[378842007,1755050872729,460.0,0.00029999,120]
[378842008,1755050875888,460.0,0.00029999,120]
[378842009,1755050888096,460.0,0.00029999,120]
[378842010,1755050888305,460.0,0.00029999,120]
[378842011,1755050890435,460.0,0.00029999,120]
[378842012,1755050895257,366.52561751,0.00029999,120]
[378842013,1755050900995,626.46,0.00029999,120]
[378842014,1755050902065,518.0,0.00029999,120]
[378842015,1755050902360,476.57820403,0.00029999,120]
[378842016,1755050903498,592.9,0.00029999,120]
[378842017,1755050910752,467.28638262,0.00029999,120]
[378842018,1755050911766,460.0,0.00029999,120]
[378842019,1755050911822,460.0,0.00029999,120]
[378842020,1755050912597,460.0,0.00029999,120]
[378842021,1755050916361,460.0,0.00029999,120]
[378842022,1755050917163,460.0,0.00029999,120]
[378842023,1755050918785,165.9672108,0.00029999,120]
[378842024,1755050920296,460.0,0.00029999,120]
[378842025,1755050925897,460.0,0.00029999,120]
[378842026,1755050925965,460.0,0.00029999,120]
[378842027,1755050931511,460.0,0.00029999,120]
[378842028,1755050933024,464.2057849,0.00029999,120]
[378842029,1755050933084,471.55289919,0.00029999,120]
[378842030,1755050933694,460.0,0.00029999,120]
[378842031,1755050939898,460.0,0.00029999,120]
[378842032,1755050942347,467.31986216,0.00029999,120]
[378842033,1755050945440,460.0,0.00029999,120]
[378842034,1755050946084,460.0,0.00029999,120]
[378842035,1755050947843,460.0,0.00029999,120]
[378842036,1755050948856,460.0,0.00029999,120]
[378842037,1755050950705,460.0,0.00029999,120]
[378842058,1755050954823,460.0,0.00029999,120]
[378842059,1755050957255,460.0,0.00029999,120]
[378842060,1755050957955,467.0,0.00029999,120]
[378842061,1755050961436,460.0,0.00029999,120]
[378842062,1755050962258,460.0,0.00029999,120]
[378842063,1755050963388,817.59,0.00029999,120]
[378842064,1755050964282,460.0,0.00029999,120]
[378842075,1755050968427,460.0,0.00029999,120]
[378842076,1755050969091,460.0,0.00029999,120]
[378842079,1755050976077,460.0,0.00029999,120]
[378842080,1755050977320,460.0,0.00029999,120]
[378842081,1755050983845,460.0,0.00029999,120]
[378842082,1755050984660,460.0,0.00029999,120]
[378842083,1755050988287,460.0,0.00029999,120]
[378842084,1755050990194,467.39752582,0.00029999,120]
[378842085,1755050991021,460.0,0.00029999,120]
[378842086,1755050991951,460.0,0.00029999,120]
[378842087,1755050993112,542.96,0.00029999,120]
[378842088,1755051000677,460.0,0.00029999,120]
[378842089,1755051002065,464.06248884,0.00029999,120]
[378842090,1755051002593,460.0,0.00029999,120]
[378842091,1755051004954,461.7015884,0.00029999,120]
[378842092,1755051006778,460.0,0.00029999,120]
[378842093,1755051009213,565.76,0.00029999,120]
[378842094,1755051021412,460.0,0.00029999,120]
[378842095,1755051021989,460.0,0.00029999,120]
[378842096,1755051026049,302.11194971,0.00029999,120]
[378842097,1755051026348,2312.75,0.00029999,120]
[378842098,1755051030052,460.0,0.00029999,120]
[378842131,1755051031904,462.37549668,0.00029999,120]
[378842132,1755051031920,-300.0,0.00018298,2]
[378842133,1755051031931,-80.15157177,0.00018298,2]
[378842134,1755051031943,-219.84842823,0.00018298,2]
[378842135,1755051031952,-300.0,0.00018298,2]
[378842136,1755051031962,-300.0,0.00018298,2]
[378842137,1755051031974,-70.54946607,0.00018298,2]
[378842138,1755051031994,-1129.45053393,0.00018298,2]
[378842139,1755051032003,-22730.54946607,0.00018299,2]
[378842170,1755051033701,460.0,0.00029999,120]
[378842171,1755051035019,460.0,0.00029999,120]
[378842175,1755051037622,-530.64083125,0.00018299,2]
[378842176,1755051037634,-1638.80970268,0.00018299,2]
[378842177,1755051037643,-248.04160871,0.00018888,2]
[378842178,1755051037652,-1837.41376275,0.00018989,2]
[378842179,1755051037675,-345.90433912,0.00018989,2]
[378842180,1755051037685,-300.0,0.00018999,2]
[378842181,1755051037695,-36.91496564,0.00018999,2]
[378842182,1755051037707,-463.08503436,0.00018999,2]
[378842183,1755051037716,-39.07886691,0.00018999,2]
[378842184,1755051037728,-460.92113309,0.00018999,2]
[378842185,1755051037739,-500.0,0.00018999,2]
[378842186,1755051037748,-500.0,0.00018999,2]
[378842187,1755051037758,-500.0,0.00018999,2]
[378842188,1755051037767,-500.0,0.00018999,2]
[378842189,1755051037777,-253.81692346,0.00018999,2]
[378842191,1755051037788,-246.18307654,0.00018999,2]
[378842192,1755051037797,-384.54100687,0.00018999,2]
[378842201,1755051037974,-500.0,0.00018999,2]
[378842202,1755051037985,-500.0,0.00018999,2]
[378842203,1755051037994,-500.0,0.00018999,2]
[378842204,1755051038003,-592.25496684,0.00018999,2]
[378842205,1755051038012,-500.0,0.00018999,2]
[378842206,1755051038021,-500.0,0.00018999,2]
[378842207,1755051038033,-500.0,0.00018999,2]
[378842208,1755051038042,-500.0,0.00018999,2]
[378842209,1755051038052,-500.0,0.00018999,2]
[378842210,1755051038061,-500.0,0.00018999,2]
[378842211,1755051038071,-500.0,0.00018999,2]
[378842212,1755051038080,-162.27711093,0.00018999,2]
[378842213,1755051038089,-500.0,0.00018999,2]
[378842214,1755051038100,-500.0,0.00018999,2]
[378842215,1755051038111,-500.0,0.00018999,2]
[378842216,1755051038120,-404.5352407,0.00018999,2]
[378842217,1755051038132,-95.4647593,0.00018999,2]
[378842218,1755051038142,-500.0,0.00018999,2]
[378842219,1755051038151,-500.0,0.00018999,2]
[378842220,1755051038160,-500.0,0.00018999,2]
[378842221,1755051038169,-500.0,0.00018999,2]
[378842222,1755051038178,-500.0,0.00018999,2]
[378842223,1755051038187,-500.0,0.00018999,2]
[378842225,1755051038197,-500.0,0.00018999,2]
[378842226,1755051038206,-500.0,0.00018999,2]
[378842227,1755051038215,-500.0,0.00018999,2]
[378842229,1755051038225,-500.0,0.00018999,2]
[378842231,1755051038235,-500.0,0.00018999,2]
[378842232,1755051038244,-500.0,0.00018999,2]
[378842234,1755051038253,-500.0,0.00018999,2]
[378842236,1755051038262,-500.0,0.00018999,2]
[378842238,1755051038272,-506.61654876,0.00018999,2]
[378842240,1755051038281,-500.0,0.00018999,2]
[378842242,1755051038290,-76.98728865,0.00018999,2]
[378842252,1755051038369,-423.01271135,0.00018999,2]
[378842254,1755051038378,-500.0,0.00018999,2]
[378842256,1755051038388,-500.0,0.00018999,2]
[378842258,1755051038397,-18864.05501104,0.00019,2]
[378842260,1755051038406,-2264.10087164,0.00019044,2]
[378842262,1755051038415,-1534.06469869,0.00019099,2]
[378842264,1755051038425,-11974.91139313,0.00019279,2]
[378842266,1755051038434,-157.08645534,0.00019329,2]
[378842268,1755051038443,-200.0,0.00019378,15]
[378842270,1755051038452,-200.0,0.00019378,15]
[378842272,1755051038461,-200.0,0.00019378,15]
[378842274,1755051038470,-200.0,0.00019378,15]
[378842276,1755051038480,-271.0,0.00019401,2]
[378842278,1755051038489,-271.0,0.00019438,2]
[378842280,1755051038498,-273.0,0.000195,2]
[378842282,1755051038509,-271.0,0.00019554,2]
[378842284,1755051038518,-151.0,0.00019572,2]
[378842286,1755051038527,-151.0,0.00019572,2]
[378842288,1755051038535,-157.753265,0.00019572,2]
[378842290,1755051038545,-152.539395,0.00019572,2]
[378842292,1755051038554,-500.0,0.00019573,2]
[378842294,1755051038563,-500.0,0.00019573,2]
[378842296,1755051038573,-500.0,0.00019573,2]
[378842298,1755051038582,-500.0,0.00019573,2]
[378842300,1755051038591,-500.0,0.00019573,2]
[378842302,1755051038604,-500.0,0.00019573,2]
[378842304,1755051038621,-453.03009471,0.00019573,2]
[378842306,1755051038630,-7695.30478696,0.00019573,2]
[378842308,1755051038640,-500.0,0.00019583,2]
[378842310,1755051038650,-809.89152755,0.00019583,2]
[378842311,1755051038661,-809.89152755,0.00019583,2]
[378842314,1755051038676,-476.01385581,0.00019583,2]
[378842315,1755051038685,-809.89152755,0.00019583,2]
[378842318,1755051038696,-809.89152755,0.00019583,2]
[378842320,1755051038705,-809.89152755,0.00019583,2]
[378842322,1755051038715,-809.89152755,0.00019583,2]
[378842324,1755051038724,-809.89152755,0.00019583,2]
[378842326,1755051038733,-809.89152755,0.00019583,2]
[378842327,1755051038742,-809.89152755,0.00019583,2]
[378842329,1755051038751,-809.89152755,0.00019583,2]
[378842331,1755051038760,-809.89152755,0.00019583,2]
[378842333,1755051038770,-339.26895532,0.00019583,2]
[378842336,1755051038782,-470.62257223,0.00019583,2]
[378842338,1755051038796,-809.89152755,0.00019583,2]
[378842340,1755051038811,-809.89152755,0.00019583,2]
[378842342,1755051038821,-809.89152755,0.00019583,2]
[378842344,1755051038839,-809.89152755,0.00019583,2]
[378842346,1755051038848,-151.0,0.00019584,2]
[378842348,1755051038858,-252.725635,0.00019584,2]
[378842350,1755051038867,-151.0,0.00019584,2]
[378842352,1755051038876,-151.0,0.00019584,2]
[378842354,1755051038886,-151.0,0.00019584,2]
[378842356,1755051038895,-151.829199,0.00019584,2]
[378842358,1755051038904,-151.0,0.00019584,2]
[378842360,1755051038914,-157.884729,0.00019584,2]
[378842362,1755051038923,-3285.69,0.00019584,2]
[378842364,1755051038932,-326.30482396,0.00019585,2]
[378842366,1755051038942,-173.897578,0.00019585,2]
[378842368,1755051038951,-20815.52988918,0.00019585,2]
[378842370,1755051038963,-8397.35240774,0.00019585,2]
[378842372,1755051038974,-398.73,0.00019585,2]
[378842453,1755051039845,-725.27907054,0.00019338,2]
[378842454,1755051039854,-7189.60518651,0.00019585,2]
[378842497,1755051041762,857.16,0.00029999,120]
[378842498,1755051041855,460.0,0.00029999,120]
[378842499,1755051042048,460.0,0.00029999,120]
[378842514,1755051042856,-152.876189,0.00019572,2]
[378842516,1755051042865,-1040.023811,0.00019585,2]
[378842518,1755051042877,-60029.34564035,0.00019585,2]
[378842523,1755051043067,-13102.67207891,0.00019585,2]
[378842531,1755051044286,1267.46,0.00029999,120]
[378842532,1755051045181,460.0,0.00029999,120]
[378842594,1755051050645,460.0,0.00029999,120]
[378842595,1755051051294,466.84225237,0.00029999,120]
[378842596,1755051057070,460.0,0.00029999,120]
[378842597,1755051057953,460.0,0.00029999,120]
[378842598,1755051058502,460.0,0.00029999,120]
[378842599,1755051063459,463.62931316,0.00029999,120]
[378842600,1755051066063,460.0,0.00029999,120]
[378842601,1755051069481,460.0,0.00029999,120]
[378842602,1755051079454,460.0,0.00029999,120]
[378842603,1755051079513,460.0,0.00029999,120]
[378842604,1755051081073,927.77,0.00029999,120]
[378842605,1755051085561,665.44,0.00029999,120]
[378842606,1755051086218,468.59922887,0.00029999,120]
[378842607,1755051086694,276.58271834,0.00029999,120]
[378842608,1755051087167,460.0,0.00029999,120]
[378842609,1755051088578,460.0,0.00029999,120]
[378842610,1755051089945,460.0,0.00029999,120]
[378842611,1755051090621,460.0,0.00029999,120]
[378842612,1755051091786,460.0,0.00029999,120]
[378842613,1755051093686,460.0,0.00029999,120]
[378842614,1755051094323,460.0,0.00029999,120]
[378842615,1755051095133,460.0,0.00029999,120]
[378842616,1755051098157,460.0,0.00029999,120]
[378842617,1755051100557,460.0,0.00029999,120]
[378842618,1755051103699,460.0,0.00029999,120]
[378842619,1755051106119,577.38534705,0.00029999,120]
[378842620,1755051109324,466.83773076,0.00029999,120]
[378842621,1755051112325,223.64,0.00023,30]
[378842622,1755051113580,429.31351373,0.00029999,120]
[378842623,1755051122125,460.0,0.00029999,120]
[378842624,1755051124405,460.0,0.00029999,120]
[378842625,1755051126205,596.18,0.00029999,120]
[378842626,1755051138068,465.11232857,0.00029999,120]
[378842627,1755051140199,466.70269796,0.00029999,120]
[378842628,1755051142798,1498.52,0.00029999,120]
[378842629,1755051146252,460.0,0.00029999,120]
[378842630,1755051148584,460.0,0.00029999,120]
[378842631,1755051153165,460.0,0.00029999,120]
[378842632,1755051164055,460.0,0.00029999,120]
[378842633,1755051166256,460.0,0.00029999,120]
[378842634,1755051171033,600.36,0.00029999,120]
[378842635,1755051179456,460.0,0.00029999,120]
[378842636,1755051181811,460.0,0.00029999,120]
[378842637,1755051182720,460.0,0.00029999,120]
[378842638,1755051197088,460.0,0.00029999,120]
[378842639,1755051198588,460.0,0.00029999,120]
[378842640,1755051203161,460.0,0.00029999,120]
[378842641,1755051204028,460.0,0.00029999,120]
[378842642,1755051204736,460.0,0.00029999,120]
[378842643,1755051204978,467.10297832,0.00029999,120]
[378842644,1755051206626,448.40681351,0.00029999,120]
[378842645,1755051207454,783.53,0.00029999,120]
[378842646,1755051211035,520.33,0.00029999,120]
[378842647,1755051213183,460.0,0.00029999,120]
[378842648,1755051220405,460.0,0.00029999,120]
[378842649,1755051222461,460.0,0.00029999,120]
[378842650,1755051222683,473.3875114,0.00029999,120]
[378842651,1755051225047,460.0,0.00029999,120]
[378842652,1755051226123,405.43796471,0.00029999,120]
[378842653,1755051232652,584.26260887,0.00029999,120]
[378842654,1755051234575,460.0,0.00029999,120]
[378842655,1755051234632,560.27737135,0.00029999,120]
[378842656,1755051238432,460.0,0.00029999,120]
[378842657,1755051243294,460.0,0.00029999,120]
[378842658,1755051250090,460.0,0.00029999,120]
[378842659,1755051250845,460.0,0.00029999,120]
[378842660,1755051257811,463.12818602,0.00029999,120]
[378842661,1755051260171,301.27771468,0.00029999,120]
[378842662,1755051266579,2422.87,0.00029999,120]
[378842663,1755051267330,460.0,0.00029999,120]
[378842664,1755051271178,460.0,0.00029999,120]
[378842665,1755051274762,463.46361267,0.00029999,120]
[378842666,1755051275247,471.88567955,0.00029999,120]
[378842667,1755051276145,431.91961653,0.00029999,120]
[378842668,1755051281920,1252.98,0.00029999,120]
[378842669,1755051283531,460.0,0.00029999,120]
[378842670,1755051284159,480.24061293,0.00029999,120]
[378842671,1755051284326,476.00984591,0.00029999,120]
[378842672,1755051284519,1075.58,0.00029999,120]
[378842673,1755051285923,472.4969568,0.00029999,120]
[378842674,1755051286023,272.33395802,0.00029999,120]
[378842675,1755051286256,460.0,0.00029999,120]
[378842676,1755051287240,460.0,0.00029999,120]
[378842677,1755051288254,460.0,0.00029999,120]
[378842678,1755051297828,473.29119184,0.00029999,120]
[378842679,1755051305485,460.0,0.00029999,120]
[378842680,1755051306835,469.5737248,0.00029999,120]
[378842681,1755051309059,460.0,0.00029999,120]
[378842682,1755051311104,462.07622255,0.00029999,120]
[378842683,1755051311478,460.0,0.00029999,120]
[378842684,1755051314152,468.71297319,0.00029999,120]
[378842685,1755051314276,460.0,0.00029999,120]
[378842686,1755051315169,460.0,0.00029999,120]
[378842687,1755051316030,473.91588815,0.00029999,120]
[378842688,1755051319532,1004.53,0.00029999,120]
[378842689,1755051320519,460.0,0.00029999,120]
[378842690,1755051321088,460.0,0.00029999,120]
[378842691,1755051322286,460.0,0.00029999,120]
[378842692,1755051324924,460.0,0.00029999,120]
[378842693,1755051324979,522.8,0.00029999,120]
[378842694,1755051328042,460.0,0.00029999,120]
[378842695,1755051328260,460.0,0.00029999,120]
[378842696,1755051328339,637.72,0.00029999,120]
[378842697,1755051329271,460.0,0.00029999,120]
[378842698,1755051330078,421.25929759,0.00029999,120]
[378842699,1755051330135,446.10336392,0.00029999,120]
[378842700,1755051331430,460.0,0.00029999,120]
[378842701,1755051331800,468.90842742,0.00029999,120]
[378842702,1755051333708,460.0,0.00029999,120]
[378842703,1755051337620,460.0,0.00029999,120]
[378842704,1755051338389,192.88577134,0.00029999,120]
[378842705,1755051342755,460.0,0.00029999,120]
[378842706,1755051345210,460.0,0.00029999,120]
[378842707,1755051353064,464.19748507,0.00029999,120]
[378842708,1755051353674,391.92107591,0.00029999,120]
[378842709,1755051356428,460.0,0.00029999,120]
[378842710,1755051359141,460.0,0.00029999,120]
[378842711,1755051361429,460.0,0.00029999,120]
[378842712,1755051363208,460.0,0.00029999,120]
[378842713,1755051363379,1758.29,0.00029999,120]
[378842714,1755051364027,460.0,0.00029999,120]
[378842715,1755051367463,651.34,0.00029999,120]
[378842716,1755051369834,460.0,0.00029999,120]
[378842717,1755051373049,460.0,0.00029999,120]
[378842718,1755051373188,460.0,0.00029999,120]
[378842719,1755051375509,460.0,0.00029999,120]
[378842720,1755051378743,462.186458,0.00029999,120]
[378842721,1755051378804,460.0,0.00029999,120]
[378842722,1755051379051,477.63,0.00029999,120]
[378842723,1755051381080,460.0,0.00029999,120]
[378842724,1755051384144,460.0,0.00029999,120]
[378842725,1755051386820,167.24414904,0.00029999,120]
[378842726,1755051389109,460.0,0.00029999,120]
[378842727,1755051391210,575.34,0.00029999,120]
[378842728,1755051397818,472.45058305,0.00029999,120]
[378842729,1755051398362,460.0,0.00029999,120]
[378842730,1755051401669,460.0,0.00029999,120]
[378842731,1755051404052,460.0,0.00029999,120]
[378842732,1755051404946,460.0,0.00029999,120]
[378842733,1755051405051,460.0,0.00029999,120]
[378842734,1755051405124,460.0,0.00029999,120]
[378842735,1755051409942,460.0,0.00029999,120]
[378842736,1755051410520,460.0,0.00029999,120]
[378842737,1755051413819,460.0,0.00029999,120]
[378842738,1755051416162,460.0,0.00029999,120]
[378842739,1755051416718,460.0,0.00029999,120]
[378842740,1755051419159,460.0,0.00029999,120]
[378842741,1755051420039,460.0,0.00029999,120]
[378842742,1755051421562,460.0,0.00029999,120]
[378842743,1755051422413,472.98088998,0.00029999,120]
[378842744,1755051423921,466.7,0.00029999,120]
[378842745,1755051428974,460.0,0.00029999,120]
[378842746,1755051431176,460.0,0.00029999,120]
[378842747,1755051431732,460.0,0.00029999,120]
[378842748,1755051433552,257.8158582,0.00029999,120]
[378842749,1755051438467,460.0,0.00029999,120]
[378842750,1755051441802,588.77137683,0.00029999,120]
[378842751,1755051445046,526.12,0.00029999,120]
[378842752,1755051446041,466.74707591,0.00029999,120]
[378842753,1755051446309,460.0,0.00029999,120]
[378842754,1755051446973,460.0,0.00029999,120]
[378842755,1755051448057,181.7856112,0.00029999,120]
[378842756,1755051448571,460.0,0.00029999,120]
[378842757,1755051449879,460.0,0.00029999,120]
[378842758,1755051449940,460.0,0.00029999,120]
[378842759,1755051450683,1115.28,0.00029999,120]
[378842760,1755051450779,473.65425063,0.00029999,120]
[378842761,1755051451691,460.0,0.00029999,120]
[378842762,1755051452673,573.55586289,0.00029999,120]
[378842763,1755051455128,460.0,0.00029999,120]
[378842764,1755051455871,460.0,0.00029999,120]
[378842765,1755051458056,460.0,0.00029999,120]
[378842766,1755051458127,472.2050081,0.00029999,120]
[378842767,1755051458344,462.98460255,0.00029999,120]
[378842768,1755051463491,254.68065858,0.00029999,120]
[378842769,1755051467689,486.12734686,0.00029999,120]
[378842770,1755051468772,467.77148402,0.00029999,120]
[378842771,1755051472579,481.37139167,0.00029999,120]
[378842772,1755051473375,463.94670311,0.00029999,120]
[378842773,1755051475034,515.58,0.00029999,120]
[378842774,1755051478686,460.0,0.00029999,120]
[378842775,1755051479387,469.80946771,0.00029999,120]
[378842776,1755051482454,460.0,0.00029999,120]
[378842777,1755051483472,543.32029295,0.00029999,120]
[378842778,1755051487318,460.0,0.00029999,120]
[378842779,1755051490845,460.0,0.00029999,120]
[378842780,1755051492711,460.0,0.00029999,120]
[378842781,1755051498435,464.08136105,0.00029999,120]
[378842782,1755051500080,460.0,0.00029999,120]
[378842783,1755051501590,460.0,0.00029999,120]
[378842784,1755051502820,460.0,0.00029999,120]
[378842785,1755051504632,460.0,0.00029999,120]
[378842786,1755051505423,460.0,0.00029999,120]
[378842787,1755051507002,460.0,0.00029999,120]
[378842788,1755051507811,460.0,0.00029999,120]
[378842789,1755051508466,460.0,0.00029999,120]
[378842790,1755051509324,1501.43,0.00029999,120]
[378842791,1755051512217,460.0,0.00029999,120]
[378842792,1755051512845,460.0,0.00029999,120]
[378842793,1755051517584,467.24113202,0.00029999,120]
[378842794,1755051519739,460.0,0.00029999,120]
[378842795,1755051523820,466.12650689,0.00029999,120]
[378842796,1755051526457,460.0,0.00029999,120]
[378842797,1755051530135,1413.34,0.00029999,120]
[378842798,1755051530498,1030.77,0.00029999,120]
[378842799,1755051532925,611.07655908,0.0003,120]
[378842800,1755051537650,460.0,0.00029999,120]
[378842801,1755051544198,460.0,0.00029999,120]
[378842802,1755051546325,460.0,0.00029999,120]
[378842803,1755051554693,460.0,0.00029999,120]
[378842804,1755051557235,460.0,0.00029999,120]
[378842805,1755051565814,472.65523724,0.00029999,120]
[378842806,1755051570700,478.43543206,0.00029999,120]
[378842807,1755051571404,465.32601173,0.00029999,120]
[378842808,1755051572089,481.38627736,0.00029999,120]
[378842809,1755051572627,460.0,0.00029999,120]
[378842810,1755051573484,461.67560513,0.00029999,120]
[378842811,1755051576831,611.14,0.00029999,120]
[378842812,1755051582689,962.68,0.00029999,120]
[378842813,1755051587375,462.78430424,0.00029999,120]
[378842814,1755051588480,460.0,0.00029999,120]
[378842815,1755051588703,483.99958532,0.00029999,120]
[378842816,1755051589297,501.02,0.00029999,120]
[378842817,1755051592014,1685.03,0.00029999,120]
[378842818,1755051596995,460.0,0.00029999,120]
[378842819,1755051602020,460.0,0.00029999,120]
[378842820,1755051602700,460.0,0.00029999,120]
[378842821,1755051607634,542.18,0.00029999,120]
[378842822,1755051608279,460.0,0.00029999,120]
[378842823,1755051614621,460.0,0.00029999,120]
[378842824,1755051615454,624.2,0.00029999,120]
[378842825,1755051617753,460.0,0.00029999,120]
[378842826,1755051620322,462.90937516,0.00029999,120]
[378842827,1755051621009,460.0,0.00029999,120]
[378842828,1755051622575,551.37,0.00029999,120]
[378842829,1755051624189,475.94710825,0.00029999,120]
[378842830,1755051626047,460.0,0.00029999,120]
[378842831,1755051628838,460.0,0.00029999,120]
[378842832,1755051633663,414.19590464,0.00029999,120]
[378842833,1755051633960,463.07441575,0.00029999,120]
[378842834,1755051637756,460.0,0.00029999,120]
[378842835,1755051639105,466.20804726,0.00029999,120]
[378842836,1755051644008,460.0,0.00029999,120]
[378842837,1755051645925,483.52299837,0.00029999,120]
[378842838,1755051648143,460.0,0.00029999,120]
[378842839,1755051666848,546.56858306,0.00029999,120]
[378842840,1755051670892,504.2,0.00029999,120]
[378842842,1755051674202,466.16567635,0.00029999,120]
[378842843,1755051674548,460.0,0.00029999,120]
[378842844,1755051676275,1068.81,0.00029999,120]
[378842845,1755051676335,478.8076143,0.00029999,120]
[378842846,1755051677331,168.031324,0.00013699,2]
[378842847,1755051677828,460.0,0.00029999,120]
[378842848,1755051680547,466.24332828,0.00029999,120]
[378842849,1755051683300,460.0,0.00029999,120]
[378842850,1755051689035,460.0,0.00029999,120]
[378842851,1755051695143,460.0,0.00029999,120]
[378842852,1755051695774,460.0,0.00029999,120]
[378842853,1755051710557,460.0,0.00029999,120]
[378842854,1755051716429,473.89535721,0.00029999,120]
[378842855,1755051720097,460.0,0.00029999,120]
[378842856,1755051720894,464.19253734,0.00029999,120]
[378842857,1755051727723,460.0,0.00029999,120]
[378842858,1755051732316,460.0,0.00029999,120]
[378842859,1755051734713,460.0,0.00029999,120]
[378842860,1755051741535,460.0,0.00029999,120]
[378842861,1755051743700,460.0,0.00029999,120]
[378842862,1755051746378,461.91670499,0.00029999,120]
[378842863,1755051747599,1438.87,0.00029999,120]
[378842864,1755051750866,460.0,0.00029999,120]
[378842865,1755051755285,463.1620841,0.00029999,120]
[378842866,1755051755336,460.0,0.00029999,120]
[378842867,1755051756195,467.37074113,0.00029999,120]
[378842868,1755051757639,270.88914334,0.00029999,120]
[378842869,1755051758025,460.0,0.00029999,120]
[378842870,1755051758775,987.82,0.00029999,120]
[378842871,1755051761054,460.0,0.00029999,120]
[378842872,1755051762386,465.8199939,0.00029999,120]
[378842873,1755051769338,2263.03,0.00029999,120]
[378842874,1755051773234,464.66226557,0.00029999,120]
[378842875,1755051776952,462.75463917,0.00029999,120]
[378842876,1755051779919,466.68295396,0.00029999,120]
[378842877,1755051783298,460.0,0.00029999,120]
[378842878,1755051801906,585.68,0.00029999,120]
[378842879,1755051802980,461.3837154,0.00029999,120]
[378842880,1755051813404,540.0345095,0.00029999,120]
[378842881,1755051814837,480.14,0.00029999,120]
[378842882,1755051822242,1614.82,0.00029999,120]
[378842883,1755051823899,922.57,0.00029999,120]
[378842884,1755051826705,460.0,0.00029999,120]
[378842885,1755051831853,460.0,0.00029999,120]
[378842886,1755051833105,460.0,0.00029999,120]
[378842887,1755051834192,460.0,0.00029999,120]